fUSD/lending_fUSD_20250113
["ID","MTS","AMOUNT","RATE_DAILY","PERIOD"]
[348784759,1736782248591,-939.17,0.00010531,2]
[348784760,1736782248601,-500.0,0.00010531,2]
[348784761,1736782248612,-1580.39,0.00010531,2]
[348784762,1736782248621,-501.43,0.00010532,2]
[348784763,1736782248631,-543.50763906,0.00010532,2]
[348784764,1736782248641,-215.04119446,0.00010532,2]
[348784765,1736782248651,-500.0,0.00010532,2]
[348784766,1736782248661,-500.0,0.00010532,2]
[348784767,1736782248671,-500.0,0.00010532,2]
[348784768,1736782248681,-551.1140989,0.00010532,2]
[348784769,1736782248691,-500.0,0.00010532,2]
[348784770,1736782248701,-500.0,0.00010532,2]
[348784771,1736782248711,-500.0,0.00010532,2]
[348784772,1736782248721,-500.0,0.00010532,2]
[348784773,1736782248730,-500.0,0.00010532,2]
[348784774,1736782248740,-500.0,0.00010532,2]
[348784775,1736782248751,-500.0,0.00010532,2]
[348784776,1736782248760,-500.0,0.00010532,2]
[348784777,1736782248771,-500.0,0.00010532,2]
[348784778,1736782248781,-500.0,0.00010532,2]
[348784779,1736782248791,-500.0,0.00010532,2]
[348784780,1736782248800,-500.0,0.00010532,2]
[348784781,1736782248811,-185.38144298,0.00010532,2]
[348784782,1736782248822,-592.56,0.00010532,2]
[348784783,1736782248832,-500.0,0.00010532,2]
[348784784,1736782248842,-500.0,0.00010532,2]
[348784785,1736782248852,-531.37,0.00010532,2]
[348784786,1736782248862,-500.0,0.00010532,2]
[348784787,1736782248872,-500.0,0.00010532,2]
[348784788,1736782248882,-500.0,0.00010532,2]
[348784789,1736782248892,-500.0,0.00010532,2]
[348784790,1736782248902,-500.0,0.00010532,2]
[348784791,1736782248912,-500.0,0.00010532,2]
[348784792,1736782248923,-500.0,0.00010532,2]
[348784793,1736782248936,-500.0,0.00010532,2]
[348784794,1736782248951,-500.0,0.00010532,2]
[348784795,1736782248961,-432.01373313,0.00010532,2]
[348784796,1736782248972,-500.0,0.00010532,2]
[348784797,1736782248982,-500.0,0.00010532,2]
[348784798,1736782248992,-500.0,0.00010532,2]
[348784799,1736782249002,-500.0,0.00010532,2]
[348784800,1736782249012,-500.0,0.00010532,2]
[348784801,1736782249021,-647.57,0.00010532,2]
[348784802,1736782249031,-664.7,0.00010532,2]
[348784803,1736782249041,-500.0,0.00010532,2]
[348784804,1736782249051,-500.0,0.00010532,2]
[348784805,1736782249060,-526.32387161,0.00010532,2]
[348784806,1736782249071,-500.0,0.00010532,2]
[348784807,1736782249081,-500.0,0.00010532,2]
[348784808,1736782249090,-500.0,0.00010532,2]
[348784809,1736782249100,-500.0,0.00010532,2]
[348784810,1736782249109,-500.0,0.00010532,2]
[348784811,1736782249119,-500.0,0.00010532,2]
[348784812,1736782249129,-500.0,0.00010532,2]
[348784813,1736782249139,-500.0,0.00010532,2]
[348784814,1736782249148,-573.73,0.00010532,2]
[348784815,1736782249158,-500.0,0.00010532,2]
[348784816,1736782249168,-258.16325668,0.00010532,2]
[348784817,1736782249177,-500.0,0.00010532,2]
[348784818,1736782249187,-500.0,0.00010532,2]
[348784819,1736782249196,-500.0,0.00010532,2]
[348784820,1736782249206,-500.0,0.00010532,2]
[348784821,1736782249216,-500.0,0.00010532,2]
[348784822,1736782249226,-592.4,0.00010532,2]
[348784823,1736782249235,-500.0,0.00010532,2]
[348784824,1736782249245,-500.0,0.00010532,2]
[348784825,1736782249254,-500.0,0.00010532,2]
[348784826,1736782249265,-500.0,0.00010532,2]
[348784827,1736782249274,-500.0,0.00010532,2]
[348784828,1736782249284,-597.93,0.00010532,2]
[348784829,1736782249294,-500.0,0.00010532,2]
[348784830,1736782249303,-154.38115802,0.00010532,2]
[348784831,1736782249315,-500.0,0.00010532,2]
[348784832,1736782249325,-679.73,0.00010532,2]
[348784833,1736782249335,-500.0,0.00010532,2]
[348784834,1736782249344,-500.0,0.00010532,2]
[348784835,1736782249354,-500.0,0.00010532,2]
[348784836,1736782249364,-500.0,0.00010532,2]
[348784837,1736782249375,-500.0,0.00010532,2]
[348784838,1736782249446,-500.0,0.00010532,2]
[348784839,1736782249456,-500.0,0.00010532,2]
[348784840,1736782249465,-520.11,0.00010532,2]
[348784841,1736782249475,-500.0,0.00010532,2]
[348784842,1736782249486,-500.0,0.00010532,2]
[348784843,1736782249495,-500.0,0.00010532,2]
[348784844,1736782249505,-500.0,0.00010532,2]
[348784845,1736782249515,-500.0,0.00010532,2]
[348784846,1736782249524,-500.0,0.00010532,2]
[348784847,1736782249535,-406.24101157,0.00010532,2]
[348784848,1736782249544,-674.93,0.00010532,2]
[348784849,1736782249553,-500.0,0.00010532,2]
[348784850,1736782249564,-500.0,0.00010532,2]
[348784851,1736782249574,-500.0,0.00010532,2]
[348784852,1736782249590,-734.36,0.00010532,2]
[348784853,1736782249600,-500.0,0.00010532,2]
[348784854,1736782249609,-500.0,0.00010532,2]
[348784855,1736782249618,-500.0,0.00010532,2]
[348784856,1736782249627,-500.0,0.00010532,2]
[348784857,1736782249638,-500.0,0.00010532,2]
[348784858,1736782249647,-500.0,0.00010532,2]
[348784859,1736782249656,-500.0,0.00010532,2]
[348784860,1736782249666,-754.98,0.00010532,2]
[348784861,1736782249676,-500.0,0.00010532,2]
[348784862,1736782249686,-500.0,0.00010532,2]
[348784863,1736782249695,-269.45156274,0.00010532,2]
[348784864,1736782249704,-500.0,0.00010532,2]
[348784865,1736782249714,-500.0,0.00010532,2]
[348784866,1736782249724,-500.0,0.00010532,2]
[348784867,1736782249733,-500.0,0.00010532,2]
[348784868,1736782249743,-781.53,0.00010532,2]
[348784869,1736782249752,-500.0,0.00010532,2]
[348784870,1736782249762,-500.0,0.00010532,2]
[348784871,1736782249772,-500.0,0.00010532,2]
[348784872,1736782249781,-678.82,0.00010532,2]
[348784873,1736782249790,-500.0,0.00010532,2]
[348784874,1736782249799,-500.0,0.00010532,2]
[348784875,1736782249809,-500.0,0.00010532,2]
[348784876,1736782249822,-500.0,0.00010532,2]
[348784877,1736782249831,-500.0,0.00010532,2]
[348784878,1736782249840,-500.0,0.00010532,2]
[348784879,1736782249850,-319.18078517,0.00010532,2]
[348784880,1736782249859,-500.0,0.00010532,2]
[348784881,1736782249869,-500.0,0.00010532,2]
[348784882,1736782249878,-599.66770714,0.00010532,2]
[348784883,1736782249888,-500.0,0.00010532,2]
[348784884,1736782249898,-500.0,0.00010532,2]
[348784885,1736782249907,-436.8657884,0.00010532,2]
[348784886,1736782249917,-500.0,0.00010532,2]
[348784887,1736782249930,-779.77,0.00010532,2]
[348784888,1736782249940,-500.0,0.00010532,2]
[348784889,1736782249950,-500.0,0.00010532,2]
[348784890,1736782249959,-500.0,0.00010532,2]
[348784891,1736782249971,-500.0,0.00010532,2]
[348784892,1736782249980,-500.0,0.00010532,2]
[348784893,1736782249989,-500.0,0.00010532,2]
[348784894,1736782249998,-500.0,0.00010532,2]
[348784895,1736782250010,-500.0,0.00010532,2]
[348784896,1736782250020,-500.0,0.00010532,2]
[348784897,1736782250029,-500.0,0.00010532,2]
[348784898,1736782250038,-500.0,0.00010532,2]
[348784899,1736782250047,-500.0,0.00010532,2]
[348784900,1736782250057,-500.0,0.00010532,2]
[348784901,1736782250069,-500.0,0.00010532,2]
[348784902,1736782250079,-500.0,0.00010532,2]
[348784903,1736782250088,-500.0,0.00010532,2]
[348784904,1736782250098,-500.0,0.00010532,2]
[348784905,1736782250107,-695.99,0.00010532,2]
[348784906,1736782250116,-500.0,0.00010532,2]
[348784907,1736782250125,-500.0,0.00010532,2]
[348784908,1736782250134,-500.0,0.00010532,2]
[348784909,1736782250144,-500.0,0.00010532,2]
[348784910,1736782250153,-500.0,0.00010532,2]
[348784911,1736782250162,-500.0,0.00010532,2]
[348784912,1736782250172,-500.0,0.00010532,2]
[348784913,1736782250181,-500.0,0.00010532,2]
[348784914,1736782250191,-500.0,0.00010532,2]
[348784915,1736782250200,-500.0,0.00010532,2]
[348784916,1736782250210,-288.29019458,0.00010532,2]
[348784917,1736782250219,-500.0,0.00010532,2]
[348784918,1736782250229,-500.0,0.00010532,2]
[348784919,1736782250239,-500.0,0.00010532,2]
[348784920,1736782250250,-500.0,0.00010532,2]
[348784921,1736782250259,-681.82,0.00010532,2]
[348784922,1736782250270,-500.0,0.00010532,2]
[348784923,1736782250280,-500.91142037,0.00010532,2]
[348784924,1736782250289,-296.12644785,0.00010532,2]
[348784925,1736782250298,-500.0,0.00010532,2]
[348784926,1736782250308,-500.0,0.00010532,2]
[348784927,1736782250320,-500.0,0.00010532,2]
[348784928,1736782250329,-500.0,0.00010532,2]
[348784929,1736782250339,-533.13903372,0.00010532,2]
[348784930,1736782250349,-500.0,0.00010532,2]
[348784931,1736782250359,-500.0,0.00010532,2]
[348784932,1736782250369,-500.0,0.00010532,2]
[348784933,1736782250380,-500.0,0.00010532,2]
[348784934,1736782250391,-701.98,0.00010532,2]
[348784935,1736782250400,-780.8,0.00010532,2]
[348784936,1736782250411,-500.0,0.00010532,2]
[348784937,1736782250422,-500.0,0.00010532,2]
[348784938,1736782250432,-500.0,0.00010532,2]
[348784939,1736782250443,-500.0,0.00010532,2]
[348784940,1736782250455,-500.0,0.00010532,2]
[348784941,1736782250465,-580.03,0.00010532,2]
[348784942,1736782250477,-500.0,0.00010532,2]
[348784943,1736782250486,-500.0,0.00010532,2]
[348784944,1736782250497,-500.0,0.00010532,2]
[348784945,1736782250507,-500.0,0.00010532,2]
[348784946,1736782250518,-500.0,0.00010532,2]
[348784947,1736782250528,-1263.12,0.00010532,2]
[348784948,1736782250538,-500.0,0.00010532,2]
[348784949,1736782250549,-500.0,0.00010532,2]
[348784950,1736782250559,-500.0,0.00010532,2]
[348784951,1736782250572,-722.66,0.00010532,2]
[348784952,1736782250582,-500.0,0.00010532,2]
[348784953,1736782250591,-500.0,0.00010532,2]
[348784954,1736782250600,-500.0,0.00010532,2]
[348784955,1736782250610,-500.0,0.00010532,2]
[348784956,1736782250619,-500.0,0.00010532,2]
[348784957,1736782250629,-500.0,0.00010532,2]
[348784958,1736782250639,-500.0,0.00010532,2]
[348784959,1736782250648,-500.0,0.00010532,2]
[348784960,1736782250657,-667.66,0.00010532,2]
[348784961,1736782250667,-500.0,0.00010532,2]
[348784962,1736782250676,-500.0,0.00010532,2]
[348784963,1736782250686,-500.0,0.00010532,2]
[348784964,1736782250695,-500.0,0.00010532,2]
[348784965,1736782250706,-500.0,0.00010532,2]
[348784966,1736782250716,-646.03,0.00010532,2]
[348784967,1736782250726,-500.0,0.00010532,2]
[348784968,1736782250736,-500.0,0.00010532,2]
[348784969,1736782250746,-500.0,0.00010532,2]
[348784970,1736782250755,-2223.41,0.00010532,2]
[348784971,1736782250764,-500.0,0.00010532,2]
[348784972,1736782250774,-769.54,0.00010532,2]
[348784973,1736782250783,-500.0,0.00010532,2]
[348784974,1736782250792,-1227.43,0.00010532,2]
[348784975,1736782250802,-710.33,0.00010532,2]
[348784976,1736782250812,-500.0,0.00010532,2]
[348784977,1736782250824,-500.0,0.00010532,2]
[348784978,1736782250834,-702.85,0.00010532,2]
[348784979,1736782250844,-500.0,0.00010532,2]
[348784980,1736782250854,-1425.72,0.00010532,2]
[348784981,1736782250863,-647.89,0.00010532,2]
[348784982,1736782250873,-500.0,0.00010532,7]
[348784983,1736782250884,-927.94,0.00010532,2]
[348784984,1736782250894,-500.0,0.00010532,2]
[348784985,1736782250905,-4947.95,0.00010532,2]
[348784986,1736782250915,-615.0,0.00010532,2]
[348784987,1736782250925,-288.65980534,0.00010532,2]
[348784988,1736782250939,-500.0,0.00010532,2]
[348784989,1736782250949,-3261.93,0.00010532,2]
[348784990,1736782250958,-500.0,0.00010532,2]
[348784991,1736782250968,-500.0,0.00010532,2]
[348784992,1736782250980,-534.142398,0.00010532,2]
[348784993,1736782250989,-558.95,0.00010532,2]
[348784994,1736782250999,-500.0,0.00010532,2]
[348784995,1736782251009,-1163.13,0.00010532,2]
[348784996,1736782251020,-500.0,0.00010532,2]
[348784997,1736782251031,-2337.12,0.00010532,2]
[348784998,1736782251042,-500.0,0.00010532,2]
[348784999,1736782251052,-2244.86,0.00010532,2]
[348785000,1736782251062,-500.0,0.00010532,2]
[348785001,1736782251075,-923.45,0.00010532,2]
[348785002,1736782251084,-500.0,0.00010532,2]
[348785003,1736782251093,-723.56,0.00010532,2]
[348785004,1736782251103,-380.737621,0.00010532,2]
[348785005,1736782251112,-650.4,0.00010532,2]
[348785006,1736782251121,-2594.33,0.00010532,2]
[348785007,1736782251130,-695.4,0.00010532,2]
[348785008,1736782251140,-2270.7,0.00010532,2]
[348785009,1736782251149,-500.0,0.00010532,2]
[348785010,1736782251159,-500.0,0.00010532,2]
[348785011,1736782251168,-500.0,0.00010532,2]
[348785012,1736782251178,-500.0,0.00010532,2]
[348785013,1736782251187,-500.0,0.00010532,2]
[348785014,1736782251197,-3144.51,0.00010532,2]
[348785015,1736782251206,-500.0,0.00010532,2]
[348785016,1736782251215,-500.0,0.00010532,2]
[348785017,1736782251225,-500.0,0.00010532,2]
[348785018,1736782251234,-500.0,0.00010532,2]
[348785019,1736782251243,-500.0,0.00010532,2]
[348785020,1736782251254,-889.61,0.00010532,2]
[348785021,1736782251264,-500.0,0.00010532,2]
[348785022,1736782251273,-500.0,0.00010532,2]
[348785023,1736782251283,-500.0,0.00010532,2]
[348785024,1736782251293,-500.0,0.00010532,2]
[348785025,1736782251303,-500.0,0.00010532,2]
[348785026,1736782251312,-500.0,0.00010532,2]
[348785027,1736782251325,-1400.05,0.00010532,2]
[348785028,1736782251335,-291.11808226,0.00010532,2]
[348785029,1736782251345,-500.0,0.00010532,2]
[348785030,1736782251355,-500.0,0.00010532,2]
[348785031,1736782251365,-500.0,0.00010532,2]
[348785032,1736782251375,-946.34,0.00010532,2]
[348785033,1736782251385,-500.0,0.00010532,2]
[348785034,1736782251396,-500.0,0.00010532,2]
[348785035,1736782251406,-2745.8,0.00010532,2]
[348785036,1736782251420,-969.97,0.00010532,2]
[348785037,1736782251430,-614.93,0.00010532,2]
[348785038,1736782251439,-500.0,0.00010532,2]
[348785039,1736782251449,-500.0,0.00010532,2]
[348785040,1736782251459,-608.34,0.00010532,2]
[348785041,1736782251468,-1181.62,0.00010532,2]
[348785042,1736782251479,-500.0,0.00010532,2]
[348785043,1736782251489,-500.0,0.00010532,2]
[348785044,1736782251499,-500.0,0.00010532,2]
[348785045,1736782251509,-500.0,0.00010532,2]
[348785046,1736782251518,-500.0,0.00010532,2]
[348785047,1736782251528,-1010.1,0.00010533,2]
[348785048,1736782251538,-2075.6,0.00010533,2]
[348785049,1736782251548,-1087.66,0.00010533,2]
[348785050,1736782251558,-3083.43,0.00010533,2]
[348785051,1736782251573,-753.1,0.00010533,2]
[348785052,1736782251583,-835.88,0.00010533,2]
[348785053,1736782251593,-696.98,0.00010533,2]
[348785054,1736782251603,-853.63,0.00010533,2]
[348785055,1736782251612,-664.81,0.00010533,2]
[348785056,1736782251622,-585.04,0.00010533,2]
[348785057,1736782251632,-507.47,0.00010533,2]
[348785058,1736782251642,-500.0,0.00010533,2]
[348785059,1736782251652,-500.0,0.00010533,2]
[348785060,1736782251663,-645.88,0.00010533,2]
[348785061,1736782251673,-500.0,0.00010533,2]
[348785062,1736782251683,-780.72,0.00010533,2]
[348785063,1736782251693,-709.59,0.00010533,2]
[348785064,1736782251703,-689.56,0.00010533,2]
[348785065,1736782251712,-800.65,0.00010533,2]
[348785066,1736782251722,-975.85,0.00010533,2]
[348785067,1736782251732,-1840.63,0.00010533,2]
[348785068,1736782251742,-6315.61,0.00010533,2]
[348785069,1736782251753,-885.41,0.00010533,2]
[348785070,1736782251763,-500.0,0.00010533,2]
[348785071,1736782251772,-500.0,0.00010533,2]
[348785072,1736782251782,-1358.91,0.00010533,2]
[348785073,1736782251793,-500.0,0.00010533,2]
[348785074,1736782251803,-847.49,0.00010533,2]
[348785075,1736782251812,-500.0,0.00010533,2]
[348785076,1736782251825,-1108.76,0.00010533,2]
[348785077,1736782251836,-1675.21,0.00010533,2]
[348785078,1736782251846,-1000.0,0.00010533,2]
[348785079,1736782251857,-1956.45,0.00010533,2]
[348785080,1736782251866,-851.25,0.00010533,2]
[348785081,1736782251876,-1163.13,0.00010545,2]
[348785082,1736782251887,-500.0,0.00010547,2]
[348785083,1736782251896,-953.57,0.00010547,2]
[348785084,1736782251906,-1226.29,0.00010547,2]
[348785085,1736782251916,-1192.48,0.00010547,2]
[348785086,1736782251926,-889.11,0.00010547,2]
[348785087,1736782251937,-202.23076678,0.00010606,2]
[348785088,1736782251951,-985.04,0.00010685,2]
[348785089,1736782251961,-202.23076678,0.00010782,2]
[348785090,1736782251971,-955.02,0.00010805,2]
[348785091,1736782251983,-556.19,0.00010805,2]
[348785092,1736782251992,-1602.13,0.00010805,2]
[348785093,1736782252003,-1479.17,0.00010805,2]
[348785094,1736782252013,-2377.93,0.00010805,2]
[348785095,1736782252023,-1255.73,0.00010805,2]
[348785096,1736782252033,-500.0,0.00010805,2]
[348785097,1736782252043,-903.6,0.00010805,2]
[348785098,1736782252053,-1736.98,0.00010805,2]
[348785099,1736782252063,-691.0,0.00010805,2]
[348785100,1736782252075,-660.87,0.00010805,2]
[348785101,1736782252084,-1111.62,0.00010805,2]
[348785102,1736782252094,-697.73,0.00010805,2]
[348785103,1736782252104,-500.0,0.00010805,2]
[348785104,1736782252114,-765.24,0.00010805,2]
[348785105,1736782252124,-939.17,0.00010805,2]
[348785106,1736782252135,-500.0,0.00010805,2]
[348785107,1736782252147,-1580.39,0.00010805,2]
[348785108,1736782252158,-501.43,0.00010806,2]
[348785109,1736782252168,-500.0,0.00010806,2]
[348785110,1736782252179,-500.0,0.00010806,2]
[348785111,1736782252189,-500.0,0.00010806,2]
[348785112,1736782252199,-500.0,0.00010806,2]
[348785113,1736782252209,-500.0,0.00010806,2]
[348785114,1736782252219,-500.0,0.00010806,2]
[348785115,1736782252229,-449.34260467,0.00010806,2]
[348785116,1736782252239,-531.37,0.00010806,2]
[348785117,1736782252249,-500.0,0.00010806,2]
[348785118,1736782252259,-629.65235484,0.00010806,2]
[348785119,1736782252268,-500.0,0.00010806,2]
[348785120,1736782252278,-500.0,0.00010806,2]
[348785121,1736782252287,-664.7,0.00010806,2]
[348785122,1736782252298,-500.0,0.00010806,2]
[348785123,1736782252307,-500.0,0.00010806,2]
[348785124,1736782252320,-229.25374229,0.00010806,2]
[348785125,1736782252330,-592.4,0.00010806,2]
[348785126,1736782252339,-500.0,0.00010806,2]
[348785127,1736782252349,-597.93,0.00010806,2]
[348785128,1736782252360,-679.73,0.00010806,2]
[348785129,1736782252370,-500.0,0.00010806,2]
[348785130,1736782252379,-520.11,0.00010806,2]
[348785131,1736782252389,-500.0,0.00010806,2]
[348785132,1736782252399,-674.93,0.00010806,2]
[348785133,1736782252409,-500.0,0.00010806,2]
[348785134,1736782252419,-734.36,0.00010806,2]
[348785135,1736782252429,-551.32,0.00010806,2]
[348785136,1736782252439,-754.98,0.00010806,2]
[348785137,1736782252449,-500.0,0.00010806,2]
[348785138,1736782252459,-305.01297713,0.00010806,2]
[348785139,1736782252470,-500.0,0.00010806,2]
[348785140,1736782252481,-781.53,0.00010806,2]
[348785141,1736782252493,-369.89510631,0.00010806,2]
[348785142,1736782252502,-678.82,0.00010806,2]
[348785143,1736782252512,-500.0,0.00010806,2]
[348785144,1736782252523,-500.0,0.00010806,2]
[348785145,1736782252533,-779.77,0.00010806,2]
[348785146,1736782252543,-500.0,0.00010806,2]
[348785147,1736782252553,-500.0,0.00010806,2]
[348785148,1736782252563,-201.06996649,0.00010806,2]
[348785149,1736782252574,-695.99,0.00010806,2]
[348785150,1736782252584,-500.0,0.00010806,2]
[348785151,1736782252594,-500.0,0.00010806,2]
[348785152,1736782252604,-500.0,0.00010806,2]
[348785153,1736782252615,-681.82,0.00010806,2]
[348785154,1736782252625,-500.0,0.00010806,2]
[348785155,1736782252636,-500.0,0.00010806,2]
[348785156,1736782252645,-500.0,0.00010806,2]
[348785157,1736782252656,-701.98,0.00010806,2]
[348785158,1736782252667,-780.8,0.00010806,2]
[348785159,1736782252677,-500.0,0.00010806,2]
[348785160,1736782252687,-580.03,0.00010806,2]
[348785161,1736782252697,-500.0,0.00010806,2]
[348785162,1736782252707,-500.0,0.00010806,2]
[348785163,1736782252719,-1263.12,0.00010806,2]
[348785164,1736782252730,-500.0,0.00010806,2]
[348785165,1736782252741,-722.66,0.00010806,2]
[348785166,1736782252751,-500.0,0.00010806,2]
[348785167,1736782252761,-667.66,0.00010806,2]
[348785168,1736782252771,-500.0,0.00010806,2]
[348785169,1736782252781,-639.65523134,0.00010806,2]
[348785170,1736782252791,-646.03,0.00010806,2]
[348785171,1736782252802,-2223.41,0.00010806,2]
[348785172,1736782252812,-500.0,0.00010806,2]
[348785173,1736782252824,-769.54,0.00010806,2]
[348785174,1736782252834,-500.0,0.00010806,2]
[348785175,1736782252844,-1227.43,0.00010806,2]
[348785176,1736782252854,-710.33,0.00010806,2]
[348785177,1736782252864,-500.0,0.00010806,2]
[348785178,1736782252873,-500.0,0.00010806,2]
[348785179,1736782252884,-702.85,0.00010806,2]
[348785180,1736782252894,-500.0,0.00010806,2]
[348785181,1736782252905,-1425.72,0.00010806,2]
[348785182,1736782252915,-647.89,0.00010806,2]
[348785183,1736782252927,-500.0,0.00010806,7]
[348785184,1736782252941,-927.94,0.00010806,2]
[348785185,1736782252953,-500.0,0.00010806,2]
[348785186,1736782252963,-4947.95,0.00010806,2]
[348785187,1736782252975,-615.0,0.00010806,2]
[348785188,1736782252986,-500.0,0.00010806,2]
[348785189,1736782252997,-3261.93,0.00010806,2]
[348785190,1736782253007,-500.0,0.00010806,2]
[348785191,1736782253018,-500.0,0.00010806,2]
[348785192,1736782253196,-534.142398,0.00010806,2]
[348785193,1736782253208,-558.95,0.00010806,2]
[348785194,1736782253219,-500.0,0.00010806,2]
[348785195,1736782253229,-403.08413547,0.00010806,2]
[348785196,1736782253239,-2337.12,0.00010806,2]
[348785197,1736782253250,-500.0,0.00010806,2]
[348785198,1736782253261,-500.0,0.00010806,2]
[348785199,1736782253271,-2244.86,0.00010806,2]
[348785200,1736782253281,-923.45,0.00010806,2]
[348785201,1736782253291,-500.0,0.00010806,2]
[348785202,1736782253301,-723.56,0.00010806,2]
[348785203,1736782253310,-380.737621,0.00010806,2]
[348785204,1736782253320,-650.4,0.00010806,2]
[348785205,1736782253330,-2594.33,0.00010806,2]
[348785206,1736782253339,-695.4,0.00010806,2]
[348785207,1736782253348,-2270.7,0.00010806,2]
[348785208,1736782253358,-500.0,0.00010806,2]
[348785209,1736782253369,-500.0,0.00010806,2]
[348785210,1736782253378,-500.0,0.00010806,2]
[348785211,1736782253389,-500.0,0.00010806,2]
[348785212,1736782253399,-500.0,0.00010806,2]
[348785213,1736782253408,-3144.51,0.00010806,2]
[348785214,1736782253417,-500.0,0.00010806,2]
[348785215,1736782253427,-500.0,0.00010806,2]
[348785216,1736782253436,-170.68765194,0.00010806,2]
[348785217,1736782253446,-500.0,0.00010806,2]
[348785218,1736782253455,-500.0,0.00010806,2]
[348785219,1736782253465,-889.61,0.00010806,2]
[348785220,1736782253475,-500.0,0.00010806,2]
[348785221,1736782253485,-500.0,0.00010806,2]
[348785222,1736782253494,-500.0,0.00010806,2]
[348785223,1736782253503,-500.0,0.00010806,2]
[348785224,1736782253513,-500.0,0.00010806,2]
[348785225,1736782253523,-500.0,0.00010806,2]
[348785226,1736782253533,-1400.05,0.00010806,2]
[348785227,1736782253544,-500.0,0.00010806,2]
[348785228,1736782253554,-500.0,0.00010806,2]
[348785229,1736782253564,-500.0,0.00010806,2]
[348785230,1736782253575,-946.34,0.00010806,2]
[348785231,1736782253584,-500.0,0.00010806,2]
[348785232,1736782253594,-500.0,0.00010806,2]
[348785233,1736782253603,-2745.8,0.00010806,2]
[348785234,1736782253614,-969.97,0.00010806,2]
[348785235,1736782253623,-614.93,0.00010806,2]
[348785236,1736782253633,-500.0,0.00010806,2]
[348785237,1736782253643,-608.34,0.00010806,2]
[348785238,1736782253654,-1181.62,0.00010806,2]
[348785239,1736782253665,-500.0,0.00010806,2]
[348785240,1736782253675,-500.0,0.00010806,2]
[348785241,1736782253686,-521.24,0.00010806,2]
[348785242,1736782253696,-500.0,0.00010806,2]
[348785243,1736782253707,-1010.1,0.00010807,2]
[348785244,1736782253716,-2075.6,0.00010807,2]
[348785245,1736782253726,-1087.66,0.00010807,2]
[348785246,1736782253734,-3083.43,0.00010807,2]
[348785247,1736782253744,-753.1,0.00010807,2]
[348785248,1736782253755,-835.88,0.00010807,2]
[348785249,1736782253764,-696.98,0.00010807,2]
[348785250,1736782253774,-853.63,0.00010807,2]
[348785251,1736782253784,-664.81,0.00010807,2]
[348785252,1736782253794,-585.04,0.00010807,2]
[348785253,1736782253803,-507.47,0.00010807,2]
[348785254,1736782253812,-500.0,0.00010807,2]
[348785255,1736782253825,-645.88,0.00010807,2]
[348785256,1736782253834,-500.0,0.00010807,2]
[348785257,1736782253843,-780.72,0.00010807,2]
[348785258,1736782253853,-709.59,0.00010807,2]